bitfinex/quotes_SOLUSD_20250508
["timestamp","ask_amount","ask_price","bid_price","bid_amount"]
[1746677727476,18.39969573,151.68,151.63,18.39969573]
[1746677728378,6.59326168,151.67,151.63,18.39969573]
[1746677728589,6.59326168,151.67,151.61,12.92480244]
[1746677728781,6.59326168,151.67,151.63,18.39969573]
[1746677729297,6.59326168,151.67,151.62,18.39969573]
[1746677729583,24.99295741,151.67,151.62,24.99493334]
[1746677729784,6.59326168,151.67,151.63,18.39969573]
[1746677731192,6.59295314,151.68,151.64,18.39969573]
[1746677731373,44.39969573,151.69,151.65,18.39969573]
[1746677731374,6.5924304,151.69,151.65,18.39969573]
[1746677731790,81.29205108,151.7,151.65,11.48367672]
[1746677732092,69.80837436,151.7,151.65,11.48367672]
[1746677732386,81.29205108,151.7,151.65,11.48367672]
[1746677732605,63.21625251,151.7,151.68,11.48367672]
[1746677732902,32.59167671,151.71,151.64,6.59429627]
[1746677733101,44.07535343,151.71,151.66,11.48367672]
[1746677733396,11.48367672,151.7,151.65,11.48367672]
[1746677733774,24.96701026,151.7,151.65,18.3747022]
[1746677734175,18.3747022,151.69,151.64,18.3747022]
[1746677734488,6.59230806,151.7,151.66,18.3747022]
[1746677734789,6.59230806,151.7,151.67,18.3747022]
[1746677734990,32.59168881,151.71,151.67,18.3747022]
[1746677735208,6.59119391,151.72,151.68,18.3747022]
[1746677735387,6.59119391,151.72,151.69,18.3747022]
[1746677735773,32.59079232,151.73,151.69,18.3747022]
[1746677736074,63.21625251,151.74,151.72,18.3747022]
[1746677736276,18.3747022,151.77,151.72,18.3747022]
[1746677736494,18.3747022,151.76,151.71,18.3747022]
[1746677736705,18.3747022,151.75,151.71,18.3747022]
[1746677736895,44.3747022,151.74,151.67,12.73276168]
[1746677737083,18.3747022,151.73,151.69,18.3747022]
[1746677737686,24.9655535,151.73,151.69,18.3747022]
[1746677738290,24.9655535,151.73,151.68,18.3747022]
[1746677738476,18.3747022,151.71,151.67,18.3747022]
[1746677738675,6.59034916,151.74,151.67,18.3747022]
[1746677738884,26.0,151.72,151.68,18.3747022]
[1746677739190,44.3747022,151.72,151.67,18.3747022]
[1746677740172,50.96607916,151.72,151.67,18.3747022]
[1746677740374,50.96607916,151.72,151.68,18.3747022]
[1746677741174,26.0,151.72,151.68,18.3747022]
[1746677742296,26.0,151.72,151.68,24.96740724]
[1746677743498,50.96590579,151.72,151.68,18.3747022]
[1746677743685,50.96590579,151.72,151.67,24.96788098]
[1746677743892,95.80705606,151.73,151.68,18.3747022]
[1746677744198,114.18175826,151.73,151.68,18.3747022]
[1746677744911,95.80705606,151.73,151.68,24.96752555]
[1746677745113,114.18175826,151.73,151.68,24.96752555]
[1746677746605,18.3747022,151.72,151.68,18.3747022]
[1746677747493,24.96599314,151.72,151.67,24.96781834]
[1746677747971,24.96599314,151.72,151.68,18.3747022]
[1746677748475,24.96599314,151.72,151.67,24.96781834]
[1746677748676,24.96599314,151.72,151.68,18.3747022]
[1746677750175,24.96599314,151.72,151.67,6.59309131]
[1746677750377,24.96599314,151.72,151.68,18.3747022]
[1746677750583,24.96599314,151.72,151.67,24.96779351]
[1746677751496,24.96599314,151.72,151.67,18.3747022]
[1746677752694,6.59129094,151.72,151.67,24.96791489]
[1746677752999,24.96599314,151.72,151.68,18.3747022]
[1746677753997,24.96599314,151.72,151.67,24.96791489]
[1746677754184,24.96599314,151.72,151.67,18.3747022]
[1746677754583,6.59129094,151.72,151.68,18.3747022]
[1746677754786,107.59095471,151.73,151.68,18.3747022]
[1746677755702,107.28730616,151.73,151.68,11.48023444]
[1746677756002,11.48023444,151.77,151.72,11.48023444]
[1746677756191,18.06871777,151.78,151.73,11.48023444]
[1746677756580,6.58848333,151.78,151.73,11.48023444]
[1746677756777,81.28469563,151.79,151.74,11.48023444]
[1746677757489,11.48023444,151.78,151.74,11.48023444]
[1746677757706,11.48023444,151.78,151.73,11.48023444]
[1746677758306,18.06881503,151.78,151.73,11.48023444]
[1746677758883,6.58858059,151.78,151.73,11.48023444]
[1746677759084,18.06881503,151.78,151.73,11.48023444]
[1746677760416,18.06881503,151.78,151.73,18.07084623]
[1746677760585,18.06881503,151.78,151.73,11.48023444]
[1746677761389,11.48023444,151.77,151.72,6.59092803]
[1746677761592,6.58858059,151.78,151.73,11.48023444]
[1746677761816,69.80445675,151.79,151.74,11.48023444]
[1746677761991,69.80445675,151.79,151.75,11.48023444]
[1746677762191,81.28469119,151.79,151.75,11.48023444]
[1746677762608,69.80445675,151.79,151.75,11.48023444]
[1746677762810,81.28469119,151.79,151.74,11.48023444]
[1746677763514,63.21625251,151.79,151.76,11.48023444]
[1746677763896,26.0,151.8,151.76,11.48023444]
[1746677764211,6.58690799,151.82,151.78,11.48023444]
[1746677764393,6.58690799,151.82,151.77,11.48023444]
[1746677765001,18.06714243,151.82,151.77,11.48023444]
[1746677765310,74.69648695,151.83,151.78,11.48023444]
[1746677765612,6.58501251,151.86,151.77,1.5743]
[1746677765812,6.58501251,151.86,151.81,11.48023444]
[1746677766015,11.48023444,151.85,151.81,11.48023444]
[1746677766193,37.48023444,151.85,151.81,11.48023444]
[1746677766512,6.58587987,151.84,151.8,11.48023444]
[1746677766811,6.58587987,151.84,151.81,11.48023444]
[1746677767186,6.58556028,151.85,151.81,11.48023444]
[1746677767509,11.48023444,151.84,151.79,11.48023444]
[1746677767722,26.0,151.84,151.8,11.48023444]
[1746677767901,6.58556028,151.85,151.81,11.09653444]
[1746677768305,63.21625251,151.87,151.78,18.79181043]
[1746677768586,11.48023444,151.84,151.79,11.48023444]
[1746677768803,26.0,151.86,151.8,11.48023444]
[1746677768995,26.0,151.86,151.81,11.48023444]
[1746677769201,69.8009498,151.87,151.84,11.48023444]
[1746677769202,63.21625251,151.87,151.84,11.48023444]
[1746677769415,63.21625251,151.91,151.85,11.48023444]
[1746677769591,11.48023444,151.9,151.82,18.64964886]
[1746677769803,63.21625251,151.91,151.82,18.64964886]
[1746677769998,37.48023444,151.9,151.85,11.48023444]
[1746677770216,63.21625251,151.91,151.82,18.64964886]
[1746677770406,63.21625251,151.91,151.84,11.48023444]
[1746677770714,11.48023444,151.88,151.83,11.48023444]
[1746677771110,11.48023444,151.87,151.81,82.8]
[1746677771294,63.21625251,151.89,151.82,11.48023444]
[1746677771495,11.48023444,151.88,151.83,11.48023444]
[1746677771897,11.48023444,151.88,151.8,6.58760296]
[1746677771898,11.48023444,151.87,151.82,11.48023444]
[1746677772211,6.58414537,151.88,151.84,11.48023444]
[1746677772388,18.06437981,151.88,151.83,11.48023444]
[1746677773289,6.58414537,151.88,151.83,11.48023444]
[1746677773496,18.06437981,151.88,151.83,11.48023444]
[1746677773716,18.06437981,151.88,151.84,11.48023444]
[1746677773905,6.58414537,151.88,151.8,6.58761528]
[1746677774101,6.58414537,151.88,151.84,11.48023444]
[1746677774393,63.21625251,151.89,151.86,11.48023444]
[1746677774601,26.0,151.9,151.86,11.48023444]
[1746677774799,11.48023444,151.89,151.84,11.48023444]
[1746677775101,6.58414537,151.88,151.84,11.48023444]
[1746677776727,6.58371189,151.89,151.84,11.48023444]
[1746677776920,6.58371189,151.89,151.85,11.48023444]
[1746677777220,6.58330685,151.9,151.86,11.48023444]
[1746677777407,70.78495251,151.92,151.87,11.48023444]
[1746677777408,71.33912306,151.92,151.87,11.48023444]
[1746677777608,11.48023444,151.91,151.86,11.48023444]
[1746677777812,11.48023444,151.9,151.83,8.19216397]
[1746677778020,11.48023444,151.9,151.85,11.48023444]
[1746677778328,11.48023444,151.91,151.86,11.48023444]
[1746677778525,18.06317862,151.91,151.86,11.48023444]
[1746677778729,64.75655251,151.92,151.83,1.606]
[1746677778730,71.33909739,151.92,151.87,11.48023444]
[1746677778938,11.48023444,151.9,151.85,11.48023444]
[1746677779142,71.33909739,151.92,151.86,11.48023444]
[1746677779305,11.48023444,151.91,151.86,11.48023444]
[1746677779637,71.33909739,151.92,151.87,11.48023444]
[1746677779805,71.33909739,151.92,151.83,8.19218175]
[1746677780005,18.06338172,151.91,151.83,8.19218175]
[1746677780215,6.58314728,151.91,151.86,11.48023444]
[1746677780514,18.06338172,151.91,151.86,11.48023444]
[1746677780717,6.58314728,151.91,151.86,11.48023444]
[1746677781027,18.06338172,151.91,151.86,11.48023444]
[1746677781232,6.58314728,151.91,151.86,11.48023444]
[1746677781400,6.58314728,151.91,151.87,11.48023444]
[1746677781602,18.06338172,151.91,151.87,11.48023444]
[1746677782126,18.06338172,151.91,151.84,6.58587987]
[1746677782335,18.06338172,151.91,151.86,11.48023444]
[1746677782498,6.58314728,151.91,151.86,11.48023444]
[1746677782702,71.33904047,151.92,151.87,11.48023444]
[1746677783003,11.48023444,151.91,151.87,11.48023444]
[1746677783218,71.33904047,151.92,151.87,11.48023444]
[1746677783417,71.33904047,151.92,151.88,11.48023444]
[1746677783602,82.81927491,151.92,151.84,6.58577636]
[1746677783823,71.33904047,151.92,151.87,11.48023444]
[1746677784014,82.81927491,151.92,151.87,11.48023444]
[1746677784902,11.48023444,151.91,151.87,11.48023444]
[1746677785314,18.63100435,151.93,151.88,11.48023444]
[1746677785527,7.15076991,151.93,151.88,11.48023444]
[1746677785699,11.48023444,151.92,151.86,6.58495052]
[1746677786122,7.15076991,151.93,151.88,11.48023444]
[1746677786509,11.48023444,151.92,151.87,6.58415277]
[1746677786704,11.48023444,151.92,151.88,11.48023444]
[1746677787238,7.15076991,151.93,151.88,11.48023444]
[1746677787538,18.06276715,151.92,151.88,11.48023444]
[1746677787703,6.58253271,151.92,151.88,11.48023444]
[1746677787908,7.15079266,151.93,151.88,11.48023444]
[1746677788122,7.15079266,151.93,151.89,11.48023444]
[1746677788821,18.06280889,151.92,151.85,6.58544616]
[1746677789007,18.06280889,151.92,151.88,11.48023444]
[1746677789322,0.5687685,151.93,151.86,0.14216157]
[1746677789517,0.5687685,151.93,151.89,11.48023444]
[1746677789722,12.04900294,151.93,151.88,11.48023444]
[1746677789913,11.48023444,151.92,151.87,11.48023444]
[1746677790334,7.15080248,151.93,151.88,11.48023444]
[1746677790632,11.48023444,151.91,151.87,11.48023444]
[1746677790821,7.15080248,151.93,151.88,11.48023444]
[1746677791023,18.63103692,151.93,151.86,6.58462588]
[1746677791334,18.63103692,151.93,151.88,11.48023444]
[1746677791534,7.15080248,151.93,151.88,11.48023444]
[1746677791717,18.63103692,151.93,151.88,11.48023444]
[1746677792327,11.48023444,151.92,151.85,6.72760773]
[1746677792513,11.48023444,151.92,151.84,26.14216157]
[1746677792514,11.48023444,151.91,151.86,11.48023444]
[1746677792714,11.48023444,151.92,151.87,11.48023444]
[1746677793636,7.15080248,151.93,151.87,11.48023444]
[1746677793932,0.5687685,151.93,151.87,32.58424881]
[1746677794414,0.5687685,151.93,151.89,11.48023444]
[1746677795225,7.1507901,151.93,151.87,32.58424881]
[1746677795423,11.48023444,151.92,151.87,11.48023444]
[1746677795923,18.06264623,151.92,151.87,11.48023444]
[1746677796136,18.06264623,151.92,151.84,32.58578684]
[1746677796340,18.06264623,151.92,151.87,11.48023444]
[1746677796745,6.58241179,151.92,151.87,11.48023444]
[1746677796930,18.06264623,151.92,151.87,11.48023444]
[1746677797647,18.06264623,151.92,151.85,6.58541786]
[1746677797833,18.06264623,151.92,151.87,11.48023444]
[1746677798034,18.06264623,151.92,151.85,6.58541786]
[1746677798232,18.06264623,151.92,151.87,11.48023444]
[1746677799650,6.58241179,151.92,151.88,11.48023444]
[1746677799837,6.58241179,151.92,151.85,6.58541786]
[1746677800042,6.58241179,151.92,151.88,11.48023444]
[1746677800749,18.06264623,151.92,151.85,6.58541786]
[1746677800957,18.06264623,151.92,151.87,11.48023444]
[1746677801254,18.06264623,151.92,151.85,6.58541786]
[1746677801754,18.06264623,151.92,151.87,11.48023444]
[1746677801938,6.58241179,151.92,151.86,6.58493014]
[1746677802142,6.58241179,151.92,151.89,11.48023444]
[1746677802657,6.58241179,151.92,151.88,11.48023444]
[1746677803152,11.48023444,151.91,151.84,32.58576804]
[1746677803340,11.48023444,151.91,151.86,11.48023444]
[1746677803655,6.58241179,151.92,151.88,11.48023444]
[1746677805143,18.06264623,151.92,151.85,6.58534523]
[1746677805341,18.06264623,151.92,151.87,11.48023444]
[1746677805536,18.06264623,151.92,151.85,6.58534523]
[1746677805736,11.48023444,151.91,151.86,11.48023444]
[1746677806755,11.48023444,151.91,151.87,11.48023444]
[1746677807455,89.78502101,151.93,151.84,23.05057955]
[1746677807456,96.36702557,151.93,151.84,23.05057955]
[1746677807854,107.84726001,151.93,151.88,11.48023444]
[1746677808345,107.84726001,151.93,151.84,23.05057955]
[1746677808346,11.48023444,151.92,151.84,23.05057955]
[1746677808551,18.06284716,151.92,151.87,11.48023444]
[1746677808742,11.48023444,151.89,151.83,8.19219364]
[1746677808953,6.58261272,151.92,151.83,8.19219364]
[1746677809267,11.48023444,151.9,151.85,11.48023444]
[1746677809438,6.58261272,151.92,151.85,11.48023444]
[1746677809757,11.48023444,151.9,151.85,11.48023444]
[1746677810057,23.0386422,151.92,151.85,11.48023444]
[1746677810235,11.48023444,151.9,151.85,11.48023444]
[1746677811051,6.58371189,151.89,151.85,11.48023444]
[1746677811363,11.48023444,151.88,151.83,11.48023444]
[1746677811563,11.48023444,151.88,151.82,26.0]
[1746677811745,11.48023444,151.88,151.84,11.48023444]
[1746677811940,69.7999644,151.89,151.82,6.58666863]
[1746677812151,69.7999644,151.89,151.84,11.48023444]
[1746677812353,69.7999644,151.89,151.85,11.48023444]
[1746677812643,81.28019884,151.89,151.84,11.48023444]
[1746677812849,11.48023444,151.88,151.79,27.6373]
[1746677813045,18.0647766,151.88,151.81,6.58681412]
[1746677813349,18.0647766,151.88,151.84,11.48023444]
[1746677814270,11.48023444,151.87,151.8,6.58748311]
[1746677814449,11.48023444,151.87,151.82,11.48023444]
[1746677814654,11.48023444,151.86,151.82,11.48023444]
[1746677814847,11.48023444,151.86,151.79,1.6373]
[1746677815043,11.48023444,151.84,151.76,28.72932354]
[1746677815248,11.48023444,151.84,151.79,11.48023444]
[1746677816368,18.06654808,151.83,151.79,11.48023444]
[1746677816571,6.58631364,151.83,151.79,11.48023444]
[1746677817668,18.06623099,151.84,151.8,11.48023444]
[1746677818448,6.58599655,151.84,151.8,11.48023444]
[1746677818677,6.58599655,151.84,151.81,11.48023444]
[1746677818858,69.80179764,151.85,151.82,11.48023444]
[1746677819453,63.21625251,151.85,151.82,11.48023444]
[1746677819653,63.21625251,151.85,151.83,11.48023444]
[1746677819974,69.80175194,151.85,151.82,11.48023444]
[1746677820570,69.80175194,151.85,151.8,11.48023444]
[1746677820769,81.28198638,151.85,151.8,11.48023444]
[1746677821203,81.28198638,151.85,151.76,6.58925315]
[1746677821204,86.26536734,151.85,151.76,6.58925315]
[1746677821467,11.48023444,151.81,151.75,8.22477772]
[1746677821680,11.48023444,151.81,151.77,11.48023444]
[1746677822052,11.48023444,151.82,151.77,11.48023444]
[1746677822475,6.58761528,151.8,151.77,11.48023444]
[1746677822685,6.58761528,151.8,151.74,6.59011166]
[1746677822853,18.06784972,151.8,151.75,11.48023444]
[1746677824261,18.06784972,151.8,151.76,11.48023444]
[1746677824568,6.58761528,151.8,151.76,11.48023444]
[1746677824793,18.06784972,151.8,151.75,11.48023444]
[1746677824967,11.48023444,151.79,151.75,11.48023444]
[1746677825176,11.48023444,151.78,151.72,6.59108884]
[1746677825479,11.48023444,151.78,151.73,11.48023444]
[1746677825681,11.48023444,151.77,151.71,8.22127432]
[1746677825869,11.48023444,151.78,151.73,11.48023444]
[1746677826487,74.69648695,151.79,151.74,11.48023444]
[1746677826682,63.21625251,151.79,151.75,11.48023444]
[1746677827683,63.21625251,151.79,151.78,11.48023444]
[1746677829387,96.67648695,151.84,151.78,18.06871777]
[1746677829685,96.67648695,151.84,151.79,11.48023444]
[1746677830089,96.67648695,151.84,151.78,6.58848333]
[1746677830268,96.67648695,151.84,151.79,11.48023444]
[1746677830469,103.26249055,151.84,151.79,11.48023444]
[1746677830775,103.26249055,151.84,151.77,11.48023444]
[1746677830776,11.48023444,151.82,151.77,11.48023444]
[1746677831587,63.21625251,151.81,151.72,26.0]
[1746677831774,11.48023444,151.78,151.74,11.48023444]
[1746677832083,11.48023444,151.79,151.74,11.48023444]
[1746677832461,18.06856044,151.79,151.75,11.48023444]
[1746677832892,6.588326,151.79,151.75,11.48023444]
[1746677833092,63.21625251,151.8,151.78,11.48023444]
[1746677833274,69.80389957,151.8,151.77,11.48023444]
[1746677833600,69.80389957,151.8,151.76,11.48023444]
[1746677834187,69.80388673,151.8,151.76,11.48023444]
[1746677834495,63.21625251,151.8,151.72,23.06881095]
[1746677834668,63.21625251,151.8,151.76,11.48023444]
[1746677834869,63.21625251,151.8,151.77,11.48023444]
[1746677836212,69.80392639,151.8,151.77,11.48023444]
[1746677837188,63.21625251,151.8,151.77,11.48023444]
[1746677841789,63.21625251,151.8,151.74,16.47552833]
[1746677841790,63.21625251,151.8,151.79,11.48023444]
[1746677842082,44.06626297,151.84,151.79,11.48023444]
[1746677842494,44.06626297,151.84,151.8,11.48023444]
[1746677842995,63.21625251,151.86,151.83,11.48023444]
[1746677843177,8.16767237,151.89,151.84,11.48023444]
[1746677843494,8.16767237,151.89,151.79,26.0]
[1746677843495,6.58387237,151.89,151.85,11.48023444]
[1746677843733,18.06410681,151.89,151.84,11.48023444]
[1746677844001,6.58387237,151.89,151.84,11.48023444]
[1746677844298,89.21625251,151.9,151.81,1.6637]
[1746677844299,69.79967016,151.9,151.81,1.6637]
[1746677844475,107.2799046,151.9,151.85,11.48023444]
[1746677844682,74.69648695,151.9,151.85,11.48023444]
[1746677844888,81.28003674,151.9,151.85,11.48023444]
[1746677845096,63.21625251,151.9,151.86,11.48023444]
[1746677845300,18.06276742,151.92,151.87,11.48023444]
[1746677845476,81.84739094,151.93,151.85,6.58526882]
[1746677845677,70.3671565,151.93,151.89,11.48023444]
[1746677845986,63.78502101,151.93,151.89,11.48023444]
[1746677847797,70.36708847,151.93,151.89,18.31801407]
[1746677848301,63.78502101,151.93,151.9,18.31801407]
[1746677848498,0.5687685,151.93,151.9,18.31801407]
[1746677850892,7.15078412,151.93,151.9,18.31801407]
[1746677852388,7.1507569,151.93,151.9,18.31801407]
[1746677852587,7.1507569,151.93,151.92,18.31801407]
[1746677852588,0.5687685,151.93,151.92,18.31801407]
[1746677853684,7.15074704,151.93,151.88,1.5839]
[1746677853901,7.15074704,151.93,151.9,18.31801407]
[1746677854105,0.5687685,151.93,151.91,18.31801407]
[1746677854912,7.15087501,151.93,151.91,18.31801407]
[1746677855792,7.15087501,151.93,151.88,1.5839]
[1746677856011,7.15087501,151.93,151.91,18.31801407]
[1746677856231,7.15087501,151.93,151.89,18.31801407]
[1746677856391,25.46888908,151.93,151.89,18.31801407]
[1746677856591,7.15087501,151.93,151.89,18.31801407]
[1746677856807,25.46888908,151.93,151.89,18.31801407]
[1746677857290,18.31801407,151.91,151.87,18.31801407]
[1746677857497,18.31801407,151.91,151.85,18.31801407]
[1746677857796,18.31801407,151.9,151.85,18.31801407]
[1746677858098,18.31801407,151.89,151.85,18.31801407]
[1746677858603,1.5041,151.91,151.86,18.31801407]
[1746677858794,19.82211407,151.91,151.86,18.31801407]
[1746677858997,18.31801407,151.9,151.86,18.31801407]
[1746677859190,6.58371189,151.89,151.86,18.31801407]
[1746677859388,63.21625251,151.92,151.86,26.0]
[1746677859613,63.21625251,151.92,151.91,18.31801407]
[1746677859799,7.15105329,151.93,151.9,18.31801407]
[1746677860200,7.15105329,151.93,151.89,18.31801407]
[1746677860506,25.46906736,151.93,151.88,18.31801407]
[1746677860710,7.15105329,151.93,151.89,18.31801407]
[1746677860915,7.15105329,151.93,151.86,1.6381]
[1746677861098,7.15105329,151.93,151.89,18.31801407]
[1746677861295,25.46906736,151.93,151.88,18.31801407]
[1746677862922,0.5687685,151.93,151.9,18.31801407]
[1746677863403,0.5687685,151.93,151.91,18.31801407]
[1746677863609,0.5687685,151.93,151.92,18.31801407]
[1746677864134,0.5687685,151.93,151.91,18.31801407]
[1746677864509,0.5687685,151.93,151.91,24.90052941]
[1746677864836,0.5687685,151.93,151.92,18.31801407]
[1746677865942,0.5687685,151.93,151.9,6.58314234]
[1746677866113,0.5687685,151.93,151.92,18.31801407]
[1746677866825,0.5687685,151.93,151.9,6.58314234]
[1746677867023,0.5687685,151.93,151.92,18.31801407]
[1746677867539,0.5687685,151.93,151.9,6.58314234]
[1746677867849,0.5687685,151.93,151.92,18.31801407]
[1746677870233,0.5687685,151.93,151.92,24.90042586]
[1746677871727,0.5687685,151.93,151.92,11.44297383]
[1746677873146,0.5687685,151.93,151.92,18.02538562]
[1746677875538,0.5687685,151.93,151.91,6.5826961]
[1746677875740,0.5687685,151.93,151.92,11.44297383]
[1746677876335,0.5687685,151.93,151.92,18.02538562]
[1746677877143,0.5687685,151.93,151.92,11.44297383]
[1746677877324,0.5687685,151.93,151.92,18.02538562]
[1746677877925,0.5687685,151.93,151.92,11.44297383]
[1746677878231,0.5687685,151.93,151.92,18.02538562]
[1746677878628,0.5687685,151.93,151.92,49.70810831]
[1746677878830,0.5687685,151.93,151.92,49.85026988]
[1746677879729,1.26052632,152.0,151.92,116.30629936]
[1746677879928,1.26052632,152.0,151.99,11.44297383]
[1746677880342,1.26052632,152.0,151.93,0.14216157]
[1746677880646,7.83959547,152.0,151.96,11.44297383]
[1746677881035,7.83959547,152.0,151.92,27.5901]
[1746677881227,19.2825693,152.0,151.95,11.44297383]
[1746677881621,7.83959547,152.0,151.95,11.44297383]
[1746677882037,19.2825693,152.0,151.95,11.44297383]
[1746677883151,11.44297383,151.99,151.91,6.58275166]
[1746677883345,74.65922634,151.98,151.89,6.58371189]
[1746677883527,11.44297383,151.97,151.92,11.44297383]
[1746677883930,64.74515251,151.98,151.93,11.44297383]
[1746677884123,64.74515251,151.98,151.95,11.44297383]
[1746677884660,63.21625251,151.98,151.95,11.44297383]
[1746677884827,63.21625251,151.98,151.97,11.44297383]
[1746677885025,7.83958253,152.0,151.97,11.44297383]
[1746677885346,7.83958253,152.0,151.92,11.44297383]
[1746677885547,7.83958253,152.0,151.97,11.44297383]
[1746677885726,1.26052632,152.0,151.97,11.44297383]
[1746677886037,1.26052632,152.0,151.99,11.44297383]
[1746677888529,1.26052632,152.0,151.97,6.5802461]
[1746677888930,1.26052632,152.0,151.99,11.44297383]
[1746677890359,1.26052632,152.0,151.97,6.5802461]
[1746677890531,1.26052632,152.0,151.99,11.44297383]
[1746677891234,1.26052632,152.0,151.95,26.0]
[1746677891750,19.28253239,152.0,151.93,28.22186336]
[1746677891958,11.44297383,151.98,151.91,6.5828451]
[1746677892141,11.44297383,151.98,151.93,11.44297383]
[1746677892740,6.5802461,151.97,151.93,11.44297383]
[1746677892947,11.44297383,151.98,151.93,11.44297383]
[1746677893151,18.02288926,151.98,151.93,11.44297383]
[1746677893660,18.02288926,151.98,151.94,11.44297383]
[1746677893661,6.57991543,151.98,151.94,11.44297383]
[1746677894351,18.02288926,151.98,151.93,11.44297383]
[1746677895060,11.44297383,151.97,151.89,6.58364708]
[1746677895237,11.44297383,151.95,151.88,28.22414184]
[1746677895435,11.44297383,151.96,151.91,11.44297383]
[1746677895740,74.65922634,151.95,151.88,21.64]
[1746677896055,11.44297383,151.89,151.79,20.18322006]
[1746677896295,26.0,151.82,151.79,20.18322006]
[1746677896437,44.02972129,151.82,151.79,20.18322006]
[1746677896636,98.13457794,151.82,151.79,20.18322006]
[1746677896946,124.06764992,151.82,151.8,10.09161003]
[1746677897136,11.44297383,151.81,151.8,10.09161003]
[1746677897466,25.25818162,151.81,151.8,10.09161003]
[1746677897770,50.96344234,151.81,151.8,10.09161003]
[1746677897977,75.18391049,151.81,151.8,10.09161003]
[1746677898169,43.01227858,151.81,151.8,10.09161003]
[1746677898464,43.73541589,151.81,151.8,10.09161003]
[1746677899449,26.0,151.78,151.74,18.35642412]
[1746677899645,18.35642412,151.78,151.7,6.59172283]
[1746677899851,44.35642412,151.78,151.73,18.35642412]
[1746677900851,44.35642412,151.78,151.71,6.59125093]
[1746677901053,18.35642412,151.77,151.72,18.35642412]
[1746677901352,18.35642412,151.77,151.73,18.35642412]
[1746677902256,18.35642412,151.77,151.71,6.59125093]
[1746677902457,18.35642412,151.77,151.73,18.35642412]
[1746677902656,18.35642412,151.77,151.73,24.94699976]
[1746677902858,18.35642412,151.76,151.69,6.59239237]
[1746677903059,18.35642412,151.75,151.71,18.35642412]
[1746677903767,18.35642412,151.76,151.71,18.35642412]
[1746677903973,107.57267663,151.78,151.73,18.35642412]
[1746677904569,63.21625251,151.78,151.74,18.35642412]
[1746677904761,81.57267663,151.78,151.74,18.35642412]
[1746677905168,81.57267663,151.78,151.69,23.07337331]
[1746677905373,18.35642412,151.76,151.69,23.07337331]
[1746677905679,63.21625251,151.78,151.73,18.35642412]
[1746677905868,63.21625251,151.81,151.76,18.35642412]
[1746677906070,63.21625251,151.81,151.77,18.35642412]
[1746677906279,63.21625251,151.81,151.72,26.0]
[1746677906878,81.57267663,151.81,151.77,18.35642412]
[1746677907179,18.35642412,151.8,151.75,24.94611922]
[1746677907682,81.57267663,151.81,151.76,18.35642412]
[1746677907869,81.57267663,151.81,151.77,18.35642412]
[1746677908061,81.57267663,151.81,151.76,18.35642412]
[1746677908252,18.35642412,151.8,151.76,18.35642412]
[1746677908459,63.21625251,151.81,151.76,18.35642412]
[1746677908673,18.35642412,151.8,151.76,18.35642412]
[1746677908867,18.35642412,151.8,151.76,24.94568552]
[1746677909581,18.35642412,151.8,151.76,6.5892614]
[1746677910076,18.35642412,151.8,151.76,18.35642412]
[1746677910261,81.57267663,151.81,151.76,18.35642412]
[1746677910664,81.57267663,151.81,151.73,23.06729057]
[1746677910870,18.35642412,151.8,151.76,24.94573208]
[1746677911072,81.57267663,151.81,151.76,24.94573208]
[1746677911586,81.57267663,151.81,151.77,18.35642412]
[1746677911768,81.57267663,151.81,151.76,6.58930796]
[1746677911970,81.57267663,151.81,151.76,24.94573208]
[1746677912894,63.21625251,151.81,151.77,18.35642412]
[1746677913083,63.21625251,151.81,151.79,18.35642412]
[1746677913266,63.21625251,151.81,151.77,18.35642412]
[1746677913578,81.57267663,151.81,151.74,6.58985226]
[1746677913788,81.57267663,151.81,151.76,18.35642412]
[1746677914264,81.57267663,151.81,151.77,18.35642412]
[1746677914467,63.21625251,151.81,151.78,18.35642412]
[1746677914889,63.21625251,151.81,151.77,6.58874764]
[1746677915092,63.21625251,151.81,151.77,24.94517176]
[1746677915269,63.21625251,151.81,151.77,6.58874764]
[1746677915475,81.57267663,151.81,151.77,18.35642412]
[1746677915683,81.57267663,151.81,151.73,1.6643]
[1746677915684,18.35642412,151.8,151.75,18.35642412]
[1746677915879,18.35642412,151.79,151.73,6.59060692]
[1746677916104,69.80343707,151.81,151.74,18.35642412]
[1746677916269,18.35642412,151.79,151.74,18.35642412]
[1746677916585,18.35642412,151.79,151.75,18.35642412]
[1746677916764,18.35642412,151.79,151.74,24.94655958]
[1746677916965,18.35642412,151.79,151.75,18.35642412]
[1746677918264,24.94448154,151.79,151.74,24.94655958]
[1746677918839,24.94448154,151.79,151.75,18.35642412]
[1746677918999,6.58805742,151.79,151.75,18.35642412]
[1746677919163,24.94448154,151.79,151.75,18.35642412]
[1746677919564,6.58775369,151.8,151.76,18.35642412]
[1746677919895,69.80358351,151.81,151.77,18.35642412]
[1746677920070,88.16000763,151.81,151.77,18.35642412]
[1746677920268,88.16000763,151.81,151.74,6.5901409]
[1746677920269,69.80358351,151.81,151.74,6.5901409]
[1746677920580,18.35642412,151.79,151.72,6.59108884]
[1746677920767,24.94450157,151.79,151.74,18.35642412]
[1746677922401,24.94450157,151.79,151.73,6.59027574]